[Event "XLIV Barbera del Valles-A 2022"]
[Site "Barbera del Valles"]
[Date "2022.07.10"]
[Round "7.5"]
[White "Narciso Dublan, Marc"]
[Black "Vergara Jofre, Felipe"]
[Result "1-0"]
[ECO "C44"]
[WhiteElo "2461"]
[BlackElo "2151"]
[Annotator "RC"]
[PlyCount "67"]
[EventDate "2022.07.04"]
[EventType "swiss"]
[EventCountry "ESP"]
[SourceTitle "playchess.com"]
[Source "ChessBase"]
[SourceQuality "1"]
[TimeControl "5400+30"]

1. e4 {[%emt 0:00:08]} e5 {[%emt 0:21:28]} 2. Nf3 {[%emt 0:00:22]} Nc6 {[%emt 0:00:04]} 3. g3 {[%emt 0:00:16]} Bc5 {[%emt 0:06:04]} 4. Bg2 {[%emt 0:00:18]} d6 {[%emt 0:00:31]} 5. c3 {[%emt 0:03:04]} Nf6 {[%emt 0:02:45]} 6. O-O {[%emt 0:03:22]} O-O {[%emt 0:00:47]} 7. b4 {[%emt 0:01:23]} Bb6 {[%emt 0:00:06]} 8. d3 {[%emt 0:00:07]} h6 {[%emt 0:15:43]} 9. Nbd2 {[%emt 0:03:52]} Be6 {[%emt 0:00:12]} 10. Qe2 {[%emt 0:05:51]} Qd7 {[%emt 0:10:30]} 11. Nc4 {[%emt 0:00:59]} Bxc4 {[%emt 0:03:53]} 12. dxc4 {[%emt 0:00:07]} a5 {[%emt 0:00:54]} 13. c5 {[%emt 0:01:13]} Ba7 {[%emt 0:00:58]} 14. b5 {[%emt 0:04:52]} Ne7 {[%emt 0:07:07]} 15. Ba3 {[%emt 0:02:08]} Qe6 {[%emt 0:01:09]} 16. b6 {[%emt 0:01:10]} Bb8 {[%emt 0:01:39]} 17. bxc7 {[%emt 0:34:54]} Bxc7 {[%emt 0:00:01]} 18. Qb5 {[%emt 0:01:16]} dxc5 {[%emt 0:08:44]} 19. Qxb7 {[%emt 0:11:56]} Bd6 {[%emt 0:03:36]} 20. Qb1 {[%emt 0:00:20]} Qc4 {[%emt 0:07:16]} 21. Re1 {[%emt 0:00:50]} Qxc3 {[%emt 0:01:41]} 22. Bb2 {[%emt 0:01:28]} Qb4 {[%emt 0:01:41]} 23. Nxe5 {[%emt 0:00:38]} Bxe5 {[%emt 0:03:37]} 24. Bxe5 {[%emt 0:00:05]} Ra6 {[%emt 0:00:24]} 25. Qc2 {[%emt 0:08:05]} c4 {[%emt 0:00:29]} 26. Rac1 {[%emt 0:04:05]} Rc8 {[%emt 0:01:35]} 27. Red1 {[%emt 0:00:37]} Ng6 {[%emt 0:00:35]} 28. Bc3 {[%emt 0:02:28]} Qe7 {[%emt 0:00:01]} 29. Qb2 {[%emt 0:03:36]} Ng4 {[%emt 0:00:58]} 30. Bh3 {[%emt 0:04:13]} f5 {[%emt 0:00:30]} 31. exf5 {[%emt 0:00:28]} N6e5 {[%emt 0:00:15]} 32. Qe2 {[%emt 0:00:54]} h5 {[%emt 0:00:46]} 33. Bxg4 {[%emt 0:00:18]} hxg4 {[%emt 0:00:09]} 34. Qxe5 {[%emt 0:02:07]} 1-0

[Event "XLIV Barbera del Valles-A 2022"]
[Site "Barbera del Valles"]
[Date "2022.07.10"]
[Round "7.6"]
[White "Del Amo Carbo, Jordi"]
[Black "Moskalenko, Viktor"]
[Result "0-1"]
[ECO "C44"]
[WhiteElo "2148"]
[BlackElo "2457"]
[Annotator "RC"]
[PlyCount "62"]
[EventDate "2022.07.04"]
[EventType "swiss"]
[EventCountry "ESP"]
[SourceTitle "playchess.com"]
[Source "ChessBase"]
[SourceQuality "1"]
[TimeControl "5400+30"]

1. d4 {[%emt 1:31:00]} d6 {[%emt 1:31:00]} 2. Nf3 {[%emt 0:00:30]} g6 {[%emt 0:00:30]} 3. c4 {[%emt 0:00:30]} Bg7 {[%emt 0:00:30]} 4. e4 {[%emt 0:00:30]} Bg4 {[%emt 0:00:30]} 5. Be2 {[%emt 0:00:30]} Nd7 {[%emt 0:00:30]} 6. O-O {[%emt 0:00:30]} e5 {[%emt 0:00:30]} 7. d5 {[%emt 0:00:30]} Ne7 {[%emt 0:00:30]} 8. Nc3 {[%emt 0:00:30]} O-O {[%emt 0:00:30]} 9. Ne1 {[%emt 0:00:30]} Bxe2 {[%emt 0:00:30]} 10. Qxe2 {[%emt 0:00:30]} f5 {[%emt 0:00:30]} 11. f3 {[%emt 0:00:30]} Nf6 {[%emt 0:00:30]} 12. Be3 {[%emt 0:00:30]} Qd7 {[%emt 0:00:30]} 13. Nd3 {[%emt 0:00:30]} h5 {[%emt 0:00:30]} 14. c5 {[%emt 0:00:30]} f4 {[%emt 0:00:30]} 15. Bf2 {[%emt 0:00:30]} g5 {[%emt 0:00:30]} 16. Rac1 {[%emt 0:00:30]} g4 {[%emt 0:00:30]} 17. a4 {[%emt 0:00:30]} a6 {[%emt 0:00:30]} 18. b4 {[%emt 0:00:30]} g3 {[%emt 0:00:30]} 19. hxg3 {[%emt 0:00:30]} fxg3 {[%emt 0:00:30]} 20. Bxg3 {[%emt 0:00:30]} Ng6 {[%emt 0:00:30]} 21. f4 {[%emt 0:00:30]} exf4 {[%emt 0:00:30]} 22. Bxf4 {[%emt 0:00:30]} Ng4 {[%emt 0:00:30]} 23. Bg5 {[%emt 0:00:30]} Rxf1+ {[%emt 0:00:30]} 24. Qxf1 {[%emt 0:00:30]} Rf8 {[%emt 0:00:30]} 25. Qe2 {[%emt 0:00:30]} Bd4+ {[%emt 0:00:30]} 26. Kh1 {[%emt 0:00:30]} Qg7 {[%emt 0:00:30]} 27. e5 {[%emt 0:00:30]} N6xe5 {[%emt 0:00:30]} 28. Ne4 {[%emt 0:00:30]} Nxd3 {[%emt 0:00:30]} 29. Qxd3 {[%emt 0:00:30]} Qxg5 {[%emt 0:00:30]} 30. Nxg5 {[%emt 0:00:30]} Nf2+ {[%emt 0:00:30]} 31. Kh2 {[%emt 0:00:30]} Nxd3 {[%emt 0:00:30]} 0-1

[Event "XLIV Barbera del Valles-A 2022"]
[Site "Barbera del Valles"]
[Date "2022.07.10"]
[Round "7.7"]
[White "Christodoulaki, Antonia"]
[Black "Asis Gargatagli, Hipolito"]
[Result "0-1"]
[ECO "C47"]
[WhiteElo "2067"]
[BlackElo "2514"]
[Annotator "TA"]
[PlyCount "50"]
[EventDate "2022.07.04"]
[EventType "swiss"]
[EventCountry "ESP"]
[SourceTitle "playchess.com"]
[Source "ChessBase"]
[SourceQuality "1"]
[TimeControl "5400+30"]

{[%evp 15,50,0,25,14,9,-8,0,0,-2,-31,-35,-124,-127,-166,-165,-171,-156,-297,-328,-325,-305,-363,-380,-378,-372,-378,-361,-625,-621,-610,-602,-480,-594,-570,-550,-712,-600]} 1. e4 {[%emt 0:00:03]} e5 {[%emt 0:00:05]} 2. Nf3 {[%emt 0:00:05]} Nc6 {[%emt 0:00:04]} 3. Nc3 {[%emt 0:00:09]} Nf6 {[%emt 0:00:06]} 4. d4 {[%emt 0:00:06]} exd4 {[%emt 0:00:06]} 5. Nxd4 {[%emt 0:00:05]} Bb4 {[%emt 0:00:05]} 6. Nxc6 {[%emt 0:00:11]} bxc6 {[%emt 0:00:05]} 7. Bd3 {[%emt 0:00:08]} O-O {[%emt 0:00:05]} 8. O-O {[%emt 0:00:14]} Re8 {[%emt 0:00:04]} 9. Re1 {[%emt 0:00:39] C47: Scotch Four Knights and Four Knights with 4 g3.} d6 {[%emt 0:01:06]} 10. h3 {[%emt 0:14:15]} Nd7 {[%emt 0:04:28]} 11. Bd2 {[%emt 0:10:17] The position is equal.} Rb8 {[%emt 0:08:59] [#]} 12. Bc4 $146 {[%emt 0:23:35]} ({Predecessor:} 12. a3 Bc5 13. Na4 Bd4 14. c3 Bf6 15. b4 a5 16. Qc2 h6 17. f4 Ra8 18. Rad1 {0-1 (34) Herzog,K (1960)-Oppel,D (1881) GER email 2018}) 12... Ne5 {[%emt 0:07:28]} 13. Bb3 {[%emt 0:01:29] [#]} ({Better is} 13. Bf1 $1 $15) 13... Qh4 $1 $17 {[%emt 0:01:47] And now ...Bc5 would win.} 14. Be3 {[%emt 0:20:30] [#]} Bxh3 $1 {[%emt 0:05:55][%mdl 512]} 15. Qe2 {[%emt 0:01:45]} (15. gxh3 $2 Bxc3 16. bxc3 Qxh3 17. Bxa7 Nf3+ 18. Qxf3 Qxf3 $19) 15... a5 $40 {[%emt 0:49:09][%cal Ba7a5,Ba5a4][%mdl 160] aiming for ...a4! Black has strong attack.} 16. a3 {[%emt 0:04:53]} ({Not} 16. gxh3 $2 Bxc3 17. bxc3 Qxh3 $19) (16. f4 $17 Bg4 17. Qf2 Qxf2+ 18. Bxf2) 16... Bxc3 $19 {[%emt 0:02:47]} 17. bxc3 {[%emt 0:00:02]} a4 {[%emt 0:00:32]} ({Don't go for} 17... Qxe4 $2 18. gxh3 Nf3+ 19. Kf1 Nh2+ 20. Kg1 Nf3+ 21. Kf1 $19) 18. Ba2 {[%emt 0:04:47]} Bg4 {[%emt 0:07:22]} ({Wrong is} 18... Qxe4 $2 19. gxh3 Nf3+ 20. Kf1 $19) 19. f3 {[%emt 0:00:39] [#]} Bxf3 $1 {[%emt 0:00:34][%mdl 512] Chess con chili.} 20. gxf3 {[%emt 0:00:21]} (20. Qf2 Qxf2+) 20... Qg3+ {[%emt 0:00:04]} 21. Qg2 $2 {[%emt 0:02:55]} (21. Kf1 Nxf3 22. Qf2 Qxf2+ 23. Bxf2 Nxe1 24. Kxe1) 21... Nxf3+ {[%emt 0:00:27] Black is clearly winning.} 22. Kf1 {[%emt 0:00:06]} Qxg2+ {[%emt 0:00:19]} 23. Kxg2 {[%emt 0:00:02]} Nxe1+ {[%emt 0:00:09]} 24. Rxe1 {[%emt 0:00:05]} Rxe4 {[%emt 0:01:37]} 25. Kf3 {[%emt 0:00:35]} Rbe8 {[%emt 0:00:22] Black took control after the opening.  Weighted Error Value: White=0.75/Black=0.02 (flawless)} 0-1

[Event "XLIV Barbera del Valles-A 2022"]
[Site "Barbera del Valles"]
[Date "2022.07.10"]
[Round "7.8"]
[White "Perez Bolanos, David"]
[Black "Munoz, Miguel"]
[Result "1/2-1/2"]
[ECO "B01"]
[WhiteElo "2041"]
[BlackElo "2408"]
[Annotator "RC"]
[PlyCount "37"]
[EventDate "2022.07.04"]
[EventType "swiss"]
[EventCountry "ESP"]
[SourceTitle "playchess.com"]
[Source "ChessBase"]
[SourceQuality "1"]
[TimeControl "5400+30"]

1. e4 {[%emt 0:00:05]} d5 {[%emt 0:11:52]} 2. exd5 {[%emt 0:00:12]} Qxd5 {[%emt 0:00:08]} 3. Nc3 {[%emt 0:00:19]} Qa5 {[%emt 0:00:06]} 4. d4 {[%emt 0:00:24]} Nf6 {[%emt 0:00:06]} 5. Nf3 {[%emt 0:00:23]} Bg4 {[%emt 0:00:38]} 6. h3 {[%emt 0:00:47]} Bxf3 {[%emt 0:00:12]} 7. Qxf3 {[%emt 0:00:10]} c6 {[%emt 0:00:04]} 8. Bd2 {[%emt 0:00:47]} Nbd7 {[%emt 0:00:10]} 9. O-O-O {[%emt 0:00:37]} e6 {[%emt 0:00:04]} 10. a3 {[%emt 0:00:41]} Qc7 {[%emt 0:04:03]} 11. g4 {[%emt 0:03:08]} Nd5 {[%emt 0:00:19]} 12. Ne4 {[%emt 0:03:25]} b5 {[%emt 0:00:11]} 13. Bd3 {[%emt 0:13:22]} a5 {[%emt 0:00:59]} 14. Rhe1 {[%emt 0:08:52]} Be7 {[%emt 0:05:05]} 15. Bg5 {[%emt 0:08:20]} Bxg5+ {[%emt 0:04:46]} 16. Nxg5 {[%emt 0:00:08]} Qf4+ {[%emt 0:00:27]} 17. Qxf4 {[%emt 0:00:54]} Nxf4 {[%emt 0:00:07]} 18. d5 {[%emt 0:07:26]} Nc5 {[%emt 0:16:23]} 19. dxe6 {[%emt 0:50:00]} 1/2-1/2

[Event "XLIV Barbera del Valles-A 2022"]
[Site "Barbera del Valles"]
[Date "2022.07.10"]
[Round "7.9"]
[White "Shah, Vishwa"]
[Black "Vehi Bach, Victor Manuel"]
[Result "0-1"]
[ECO "C00"]
[WhiteElo "1931"]
[BlackElo "2290"]
[Annotator "RC"]
[PlyCount "118"]
[EventDate "2022.07.04"]
[EventType "swiss"]
[EventCountry "ESP"]
[SourceTitle "playchess.com"]
[Source "ChessBase"]
[SourceQuality "1"]
[TimeControl "5400+30"]

1. e4 {[%emt 0:00:01]} c5 {[%emt 0:00:07]} 2. Nf3 {[%emt 0:00:05]} e6 {[%emt 0:00:08]} 3. g3 {[%emt 0:00:05]} Nc6 {[%emt 0:01:23]} 4. Bg2 {[%emt 0:00:05]} Nf6 {[%emt 0:02:14]} 5. Qe2 {[%emt 0:00:40]} e5 {[%emt 0:03:59]} 6. O-O {[%emt 0:04:06]} Be7 {[%emt 0:00:55]} 7. c3 {[%emt 0:00:33]} d6 {[%emt 0:00:28]} 8. d3 {[%emt 0:07:50]} O-O {[%emt 0:01:28]} 9. a3 {[%emt 0:01:02]} h6 {[%emt 0:04:49]} 10. b4 {[%emt 0:00:58]} Re8 {[%emt 0:02:55]} 11. Nbd2 {[%emt 0:01:42]} Bf8 {[%emt 0:00:34]} 12. Bb2 {[%emt 0:04:29]} g6 {[%emt 0:06:03]} 13. b5 {[%emt 0:03:39]} Na5 {[%emt 0:07:17]} 14. c4 {[%emt 0:00:07]} b6 {[%emt 0:00:43]} 15. Ne1 {[%emt 0:07:42]} Bg7 {[%emt 0:05:59]} 16. Nc2 {[%emt 0:01:26]} a6 {[%emt 0:04:47]} 17. a4 {[%emt 0:00:05]} Nb7 {[%emt 0:00:12]} 18. Ne3 {[%emt 0:01:44]} Nh7 {[%emt 0:04:53]} 19. Nb3 {[%emt 0:10:00]} a5 {[%emt 0:04:26]} 20. f4 {[%emt 0:03:27]} exf4 {[%emt 0:03:45]} 21. gxf4 {[%emt 0:00:06]} Bxb2 {[%emt 0:00:16]} 22. Qxb2 {[%emt 0:00:01]} Nf6 {[%emt 0:03:19]} 23. e5 {[%emt 0:22:14]} Ra7 {[%emt 0:03:05]} 24. Rae1 {[%emt 0:01:22]} Nh7 {[%emt 0:03:15]} 25. Nd5 {[%emt 0:01:11]} Be6 {[%emt 0:00:47]} 26. Nd2 {[%emt 0:01:45]} Bxd5 {[%emt 0:01:42]} 27. Bxd5 {[%emt 0:00:02]} Qh4 {[%emt 0:00:31]} 28. Ne4 {[%emt 0:00:54]} dxe5 {[%emt 0:00:57]} 29. Bxb7 {[%emt 0:03:51]} Rxb7 {[%emt 0:00:12]} 30. Nd6 {[%emt 0:00:03]} Rbe7 {[%emt 0:00:23]} 31. Nxe8 {[%emt 0:00:05]} Rxe8 {[%emt 0:00:07]} 32. Rxe5 {[%emt 0:00:45]} Rd8 {[%emt 0:01:38]} 33. Qe2 {[%emt 0:04:38]} Nf6 {[%emt 0:00:28]} 34. Rf3 {[%emt 0:03:01]} Rd4 {[%emt 0:00:57]} 35. Qe1 {[%emt 0:01:08]} Qg4+ {[%emt 0:01:36]} 36. Qg3 {[%emt 0:00:01]} Qd7 {[%emt 0:00:10]} 37. Qh4 {[%emt 0:02:44]} Kg7 {[%emt 0:00:39]} 38. Qg3 {[%emt 0:07:01]} h5 {[%emt 0:03:38]} 39. Rg5 {[%emt 0:01:01]} h4 {[%emt 0:08:27]} 40. Qxh4 {[%emt 0:02:26]} Rxd3 {[%emt 0:00:10]} 41. Rf1 {[%emt 0:03:47]} Qd4+ {[%emt 0:07:31]} 42. Qf2 {[%emt 0:00:41]} Qxf2+ {[%emt 0:00:22]} 43. Kxf2 {[%emt 0:00:04]} Rd4 {[%emt 0:00:06]} 44. Ke3 {[%emt 0:01:06]} Rxc4 {[%emt 0:00:08]} 45. Ra1 {[%emt 0:00:46]} Rd4 {[%emt 0:00:29]} 46. f5 {[%emt 0:01:08]} Nd5+ {[%emt 0:01:16]} 47. Kf3 {[%emt 0:00:53]} Rf4+ {[%emt 0:04:05]} 48. Kg3 {[%emt 0:00:20]} Rd4 {[%emt 0:01:17]} 49. fxg6 {[%emt 0:00:21]} fxg6 {[%emt 0:00:02]} 50. Rg4 {[%emt 0:01:02]} Rd3+ {[%emt 0:00:48]} 51. Kh4 {[%emt 0:00:16]} Rd2 {[%emt 0:01:43]} 52. h3 {[%emt 0:00:32]} Ne3 {[%emt 0:01:05]} 53. Re4 {[%emt 0:00:05]} Nf5+ {[%emt 0:00:21]} 54. Kg4 {[%emt 0:00:21]} Kf6 {[%emt 0:01:52]} 55. Rae1 {[%emt 0:00:30]} Nd4 {[%emt 0:02:56]} 56. Rf1+ {[%emt 0:00:40]} Kg7 {[%emt 0:00:01]} 57. Re7+ {[%emt 0:00:07]} Kh6 {[%emt 0:00:06]} 58. h4 {[%emt 0:01:01]} Nf5 {[%emt 0:01:56]} 59. Rb7 {[%emt 0:00:53]} Ne3+ {[%emt 0:00:08]} 0-1

[Event "XLIV Barbera del Valles-A 2022"]
[Site "Barbera del Valles"]
[Date "2022.07.10"]
[Round "7.10"]
[White "Barros, Raul Junior"]
[Black "Ortiz Verdezoto, Anahi"]
[Result "1/2-1/2"]
[ECO "C47"]
[WhiteElo "2174"]
[BlackElo "2046"]
[Annotator "RC"]
[PlyCount "34"]
[EventDate "2022.07.04"]
[EventType "swiss"]
[EventCountry "ESP"]
[SourceTitle "playchess.com"]
[Source "ChessBase"]
[SourceQuality "1"]
[TimeControl "5400+30"]

1. e4 {[%emt 0:01:57]} e5 {[%emt 0:00:09]} 2. Nf3 {[%emt 0:00:26]} Nc6 {[%emt 0:00:06]} 3. d4 {[%emt 0:00:18]} exd4 {[%emt 0:00:06]} 4. Nxd4 {[%emt 0:00:07]} Nf6 {[%emt 0:00:05]} 5. Nc3 {[%emt 0:00:17]} Bb4 {[%emt 0:00:09]} 6. Nxc6 {[%emt 0:00:07]} bxc6 {[%emt 0:00:07]} 7. Bd3 {[%emt 0:00:12]} d5 {[%emt 0:00:09]} 8. exd5 {[%emt 0:00:27]} O-O {[%emt 0:00:07]} 9. O-O {[%emt 0:00:36]} cxd5 {[%emt 0:00:04]} 10. Bg5 {[%emt 0:00:31]} c6 {[%emt 0:00:10]} 11. Qf3 {[%emt 0:00:26]} Bd6 {[%emt 0:00:13]} 12. h3 {[%emt 0:01:02]} Rb8 {[%emt 0:01:51]} 13. Rab1 {[%emt 0:01:28]} h6 {[%emt 0:00:42]} 14. Bf4 {[%emt 0:05:03]} Rb4 {[%emt 0:03:28]} 15. Bd2 {[%emt 0:05:18]} Be5 {[%emt 0:07:29]} 16. Rfe1 {[%emt 0:09:42]} Qd6 {[%emt 0:03:40]} 17. a3 {[%emt 0:04:08]} Rh4 {[%emt 0:15:37]} 1/2-1/2

[Event "XLIV Barbera del Valles-A 2022"]
[Site "Barbera del Valles"]
[Date "2022.07.11"]
[Round "8.2"]
[White "Rios, Cristhian Camilo"]
[Black "Narciso Dublan, Marc"]
[Result "1/2-1/2"]
[ECO "A21"]
[WhiteElo "2399"]
[BlackElo "2461"]
[Annotator "ChessBase"]
[PlyCount "37"]
[EventDate "2022.07.04"]
[EventType "swiss"]
[EventCountry "ESP"]
[SourceTitle "playchess.com"]
[Source "ChessBase"]
[SourceQuality "1"]
[TimeControl "5400+30"]

1. c4 {[%emt 0:00:03]} e5 {[%emt 0:03:24]} 2. Nc3 {[%emt 0:00:50]} d6 {[%emt 0:01:09]} 3. d4 {[%emt 0:04:01]} exd4 {[%emt 0:00:08]} 4. Qxd4 {[%emt 0:00:07]} Nc6 {[%emt 0:00:07]} 5. Qd2 {[%emt 0:00:07]} Nf6 {[%emt 0:00:10]} 6. b3 {[%emt 0:00:27]} a5 {[%emt 0:00:09]} 7. g3 {[%emt 0:02:11]} a4 {[%emt 0:01:57]} 8. Bb2 {[%emt 0:04:08]} a3 {[%emt 0:03:08]} 9. Bc1 {[%emt 0:00:06]} g6 {[%emt 0:03:30]} 10. Bg2 {[%emt 0:03:22]} Bg7 {[%emt 0:00:08]} 11. e4 {[%emt 0:02:02]} O-O {[%emt 0:08:36]} 12. Nge2 {[%emt 0:00:14]} Re8 {[%emt 0:03:55]} 13. Rb1 {[%emt 0:08:23]} Nd7 {[%emt 0:18:30]} 14. O-O {[%emt 0:00:33]} Nc5 {[%emt 0:00:10]} 15. b4 {[%emt 0:07:52]} Na4 {[%emt 0:00:23]} 16. Nb5 {[%emt 0:05:38]} Nb2 {[%emt 0:00:52]} 17. Nxa3 {[%emt 0:03:01]} Rxa3 {[%emt 0:00:19]} 18. Bxb2 {[%emt 0:00:11]} Rxa2 {[%emt 0:00:32]} 19. Nc3 {[%emt 0:02:01]} 1/2-1/2

[Event "XLIV Barbera del Valles-A 2022"]
[Site "Barbera del Valles"]
[Date "2022.07.11"]
[Round "8.3"]
[White "Valenzuela Gomez, Fernando"]
[Black "Alsina Leal, Daniel"]
[Result "1-0"]
[ECO "B45"]
[WhiteElo "2373"]
[BlackElo "2525"]
[Annotator "ChessBase"]
[PlyCount "60"]
[EventDate "2022.07.04"]
[EventType "swiss"]
[EventCountry "ESP"]
[SourceTitle "playchess.com"]
[Source "ChessBase"]
[SourceQuality "1"]
[TimeControl "5400+30"]

1. e4 {[%emt 0:02:10]} c5 {[%emt 0:01:16]} 2. Nf3 {[%emt 0:00:03]} e6 {[%emt 0:00:13]} 3. d4 {[%emt 0:00:29]} cxd4 {[%emt 0:00:06]} 4. Nxd4 {[%emt 0:00:05]} Nf6 {[%emt 0:00:12]} 5. Nc3 {[%emt 0:00:09]} Nc6 {[%emt 0:00:07]} 6. Nxc6 {[%emt 0:00:05]} bxc6 {[%emt 0:00:06]} 7. e5 {[%emt 0:00:09]} Nd5 {[%emt 0:00:06]} 8. Ne4 {[%emt 0:00:04]} Qc7 {[%emt 0:00:08]} 9. f4 {[%emt 0:00:07]} Qb6 {[%emt 0:00:07]} 10. c4 {[%emt 0:00:09]} Ne3 {[%emt 0:00:13]} 11. Qd3 {[%emt 0:00:21]} Bb4+ {[%emt 0:00:16]} 12. Bd2 {[%emt 0:01:04]} Ba6 {[%emt 0:00:50]} 13. Rc1 {[%emt 0:01:04]} Bxc4 {[%emt 0:02:24]} 14. Rxc4 {[%emt 0:02:38]} Nxc4 {[%emt 0:00:23]} 15. Qxc4 {[%emt 0:00:47]} Bxd2+ {[%emt 0:00:15]} 16. Kxd2 {[%emt 0:09:10]} Qxb2+ {[%emt 0:01:02]} 17. Ke3 {[%emt 0:05:38]} O-O {[%emt 0:02:27]} 18. Be2 {[%emt 0:06:07]} Rab8 {[%emt 0:21:53]} 19. Rd1 {[%emt 0:26:31]} Rb4 {[%emt 0:02:23]} 20. Qd3 {[%emt 0:00:24]} Qxa2 {[%emt 0:02:07]} 21. Kf2 {[%emt 0:05:44]} h6 {[%emt 0:13:18]} 22. Rd2 {[%emt 0:13:01]} Rb2 {[%emt 0:11:09]} 23. Nf6+ {[%emt 0:07:22]} gxf6 {[%emt 0:00:53]} 24. exf6 {[%emt 0:00:05]} Qb3 {[%emt 0:16:12]} 25. Rxb2 {[%emt 0:00:28]} Qxd3 {[%emt 0:00:07]} 26. Bxd3 {[%emt 0:00:07]} a5 {[%emt 0:00:54]} 27. Bc2 {[%emt 0:01:43]} Ra8 {[%emt 0:01:38]} 28. Rb3 {[%emt 0:00:32]} c5 {[%emt 0:02:57]} 29. Rg3+ {[%emt 0:01:24]} Kf8 {[%emt 0:00:32]} 30. Bh7 {[%emt 0:00:20]} Ke8 {[%emt 0:21:16]} 1-0

[Event "XLIV Barbera del Valles-A 2022"]
[Site "Barbera del Valles"]
[Date "2022.07.11"]
[Round "8.4"]
[White "Cuartas, Jaime Alexander"]
[Black "Dahale, Atul"]
[Result "1-0"]
[ECO "B22"]
[WhiteElo "2513"]
[BlackElo "2162"]
[Annotator "ChessBase"]
[PlyCount "63"]
[EventDate "2022.07.04"]
[EventType "swiss"]
[EventCountry "ESP"]
[SourceTitle "playchess.com"]
[Source "ChessBase"]
[SourceQuality "1"]
[TimeControl "5400+30"]

1. e4 {[%emt 0:00:03]} c5 {[%emt 0:00:45]} 2. c3 {[%emt 0:00:06]} d5 {[%emt 0:07:30]} 3. exd5 {[%emt 0:00:05]} Qxd5 {[%emt 0:00:06]} 4. d4 {[%emt 0:00:07]} Nf6 {[%emt 0:00:06]} 5. Nf3 {[%emt 0:00:05]} Bg4 {[%emt 0:02:38]} 6. Qa4+ {[%emt 0:00:27]} Bd7 {[%emt 0:06:01]} 7. Qb3 {[%emt 0:00:09]} Qxb3 {[%emt 0:02:26]} 8. axb3 {[%emt 0:00:08]} e6 {[%emt 0:03:56]} 9. Nbd2 {[%emt 0:01:27]} cxd4 {[%emt 0:10:16]} 10. Nxd4 {[%emt 0:00:05]} Bc5 {[%emt 0:05:29]} 11. Nb5 {[%emt 0:02:27]} Bxb5 {[%emt 0:05:55]} 12. Bxb5+ {[%emt 0:00:06]} Nbd7 {[%emt 0:00:05]} 13. b4 {[%emt 0:00:19]} Be7 {[%emt 0:00:45]} 14. Nb3 {[%emt 0:02:02]} O-O {[%emt 0:00:34]} 15. Na5 {[%emt 0:03:24]} Rab8 {[%emt 0:07:01]} 16. O-O {[%emt 0:03:04]} Ne5 {[%emt 0:06:20]} 17. Bf4 {[%emt 0:21:12]} Bd6 {[%emt 0:01:34]} 18. Bg3 {[%emt 0:01:31]} a6 {[%emt 0:10:33]} 19. Ba4 {[%emt 0:05:18]} Nh5 {[%emt 0:02:34]} 20. Bxe5 {[%emt 0:01:32]} Bxe5 {[%emt 0:00:06]} 21. Bd1 {[%emt 0:00:06]} Nf4 {[%emt 0:01:48]} 22. Bf3 {[%emt 0:00:04]} Nd5 {[%emt 0:00:43]} 23. Rfd1 {[%emt 0:00:11]} Rfd8 {[%emt 0:03:26]} 24. Rd3 {[%emt 0:00:12]} Bc7 {[%emt 0:00:52]} 25. Rad1 {[%emt 0:00:17]} Nf4 {[%emt 0:05:47]} 26. Rxd8+ {[%emt 0:00:15]} Rxd8 {[%emt 0:00:26]} 27. Rxd8+ {[%emt 0:00:14]} Bxd8 {[%emt 0:00:04]} 28. Bxb7 {[%emt 0:01:10]} Nd3 {[%emt 0:01:01]} 29. Nc4 {[%emt 0:00:23]} e5 {[%emt 0:02:37]} 30. Be4 {[%emt 0:01:29]} Nf4 {[%emt 0:00:53]} 31. Nxe5 {[%emt 0:00:09]} f6 {[%emt 0:00:45]} 32. Nc4 {[%emt 0:00:57]} 1-0

[Event "XLIV Barbera del Valles-A 2022"]
[Site "Barbera del Valles"]
[Date "2022.07.11"]
[Round "8.5"]
[White "Vehi Bach, Victor Manuel"]
[Black "Pimpalkhare Vedant"]
[Result "1/2-1/2"]
[ECO "C13"]
[WhiteElo "2290"]
[BlackElo "2057"]
[Annotator "ChessBase"]
[PlyCount "37"]
[EventDate "2022.07.04"]
[EventType "swiss"]
[EventCountry "ESP"]
[SourceTitle "playchess.com"]
[Source "ChessBase"]
[SourceQuality "1"]
[TimeControl "5400+30"]

1. e4 {[%emt 0:00:04]} e6 {[%emt 0:00:05]} 2. d4 {[%emt 0:00:15]} d5 {[%emt 0:00:06]} 3. Nc3 {[%emt 0:00:15]} Nf6 {[%emt 0:00:07]} 4. Bg5 {[%emt 0:00:19]} dxe4 {[%emt 0:00:06]} 5. Nxe4 {[%emt 0:00:07]} Be7 {[%emt 0:00:04]} 6. Bxf6 {[%emt 0:00:59]} gxf6 {[%emt 0:00:05]} 7. Nf3 {[%emt 0:00:32]} f5 {[%emt 0:00:07]} 8. Nc3 {[%emt 0:01:31]} a6 {[%emt 0:00:06]} 9. g3 {[%emt 0:01:57]} b5 {[%emt 0:00:07]} 10. Bg2 {[%emt 0:00:08]} Bb7 {[%emt 0:00:05]} 11. Qe2 {[%emt 0:01:23]} O-O {[%emt 0:06:44]} 12. Rd1 {[%emt 0:03:08]} b4 {[%emt 0:02:15]} 13. Na4 {[%emt 0:03:21]} Nd7 {[%emt 0:04:50]} 14. O-O {[%emt 0:01:03]} Bc6 {[%emt 0:09:37]} 15. Nc5 {[%emt 0:08:50]} Bxc5 {[%emt 0:01:04]} 16. dxc5 {[%emt 0:00:08]} Bb5 {[%emt 0:00:11]} 17. Qe3 {[%emt 0:01:01]} Bxf1 {[%emt 0:00:31]} 18. Rxd7 {[%emt 0:20:47]} Qxd7 {[%emt 0:00:07]} 19. Qg5+ {[%emt 0:54:12]} 1/2-1/2